bitfinex-derivatives/quotes_SOLF0:USTF0_20240918
["timestamp","ask_amount","ask_price","bid_price","bid_amount"]
[1726700122978,14.40549862,131.47,131.45,3.8029]
[1726700123977,31.90917361,131.47,131.45,3.8029]
[1726700124177,14.40549862,131.47,131.45,3.8029]
[1726700124581,3.86549862,131.47,131.45,3.8029]
[1726700124778,14.3422,131.48,131.45,3.8029]
[1726700125279,18.24156645,131.48,131.45,3.8029]
[1726700125477,3.89936645,131.48,131.46,3.8028]
[1726700125778,10.54,131.49,131.46,3.8028]
[1726700125978,14.30398919,131.49,131.47,3.8025]
[1726700126175,10.54,131.49,131.47,3.8025]
[1726700126375,10.54,131.48,131.44,10.54]
[1726700126875,10.54,131.48,131.46,3.8027]
[1726700127080,14.43069849,131.48,131.46,3.8027]
[1726700128981,10.54,131.47,131.45,3.803]
[1726700129283,10.54,131.46,131.42,10.54]
[1726700129579,10.54,131.46,131.43,3.8036]
[1726700130178,10.54,131.46,131.42,3.8039]
[1726700130373,10.54,131.45,131.42,3.8039]
[1726700130787,10.54,131.45,131.41,14.3441]
[1726700131179,10.54,131.45,131.41,3.8041]
[1726700133388,10.54,131.45,131.42,3.8039]
[1726700138692,10.54,131.46,131.42,3.8039]
[1726700142391,7.69299849,131.48,131.43,3.8037]
[1726700142591,10.54,131.46,131.43,3.8037]
[1726700142896,14.37599063,131.46,131.43,3.8037]
[1726700143094,14.37599063,131.46,131.43,14.3437]
[1726700143894,3.83599063,131.46,131.43,14.3437]
[1726700144094,14.3424,131.48,131.43,14.3437]
[1726700144594,18.06844307,131.48,131.43,14.3437]
[1726700146398,18.06844307,131.48,131.44,3.8034]
[1726700151793,10.54,131.46,131.44,3.8034]
[1726700152497,10.54,131.46,131.42,10.54]
[1726700152498,10.54,131.46,131.43,3.8035]
[1726700155396,7.52844307,131.48,131.43,3.8035]
[1726700155595,10.54,131.47,131.43,3.8035]
[1726700162811,7.52844307,131.48,131.43,3.8035]
[1726700163113,10.54,131.46,131.43,3.8035]
[1726700164603,10.54,131.46,131.43,14.3435]
[1726700167115,3.72604307,131.48,131.44,3.8034]
[1726700167418,14.342,131.49,131.45,10.54]
[1726700167803,18.09381292,131.49,131.45,10.54]
[1726700169111,18.09381292,131.49,131.45,14.3431]
[1726700171718,10.54,131.47,131.44,3.8032]
[1726700171912,566.0,131.59,131.43,10.54]
[1726700172123,13.91390769,131.58,131.44,10.54]
[1726700172416,10.54,131.49,131.38,2.9002]
[1726700172609,18.21632962,131.49,131.44,14.3432]
[1726700172920,18.21632962,131.49,131.44,10.54]
[1726700173116,10.54,131.47,131.44,3.8032]
[1726700173420,10.54,131.47,131.42,10.54]
[1726700173915,14.3426,131.47,131.42,14.3437]
[1726700174116,10.54,131.47,131.42,10.54]
[1726700174819,10.54,131.47,131.43,3.8036]
[1726700177218,10.54,131.47,131.42,10.54]
[1726700177219,3.8026,131.47,131.42,3.8039]
[1726700177517,10.54,131.46,131.42,3.8039]
[1726700177712,14.3426,131.47,131.42,14.3439]
[1726700181120,14.3426,131.47,131.43,3.8037]
[1726700182016,14.3426,131.47,131.43,3.8037]
[1726700182719,10.54,131.47,131.43,3.8037]
[1726700183211,14.3426,131.47,131.42,3.8039]
[1726700183416,10.54,131.45,131.42,14.3439]
[1726700186622,10.54,131.45,131.42,3.8039]
[1726700186824,3.8026,131.47,131.42,14.3439]
[1726700187023,10.54,131.46,131.42,14.3439]
[1726700193021,3.8026,131.47,131.42,14.3439]
[1726700193323,10.54,131.46,131.42,14.3439]
[1726700193625,28.04201551,131.46,131.42,14.3439]
[1726700193830,10.54,131.46,131.42,14.3439]
[1726700197426,10.54,131.46,131.42,3.8039]
[1726700197721,10.54,131.46,131.42,14.3439]
[1726700204727,10.54,131.46,131.42,3.8039]
[1726700208138,3.8026,131.47,131.42,3.8039]
[1726700208333,31.84480729,131.47,131.42,5.2051]
[1726700208535,17.50220729,131.46,131.42,5.2051]
[1726700208842,14.3426,131.47,131.42,5.2051]
[1726700209140,14.3426,131.47,131.42,15.7451]
[1726700211942,14.3426,131.47,131.43,3.8037]
[1726700218952,21.30478896,131.48,131.42,11.9412]
[1726700219250,14.41432962,131.49,131.44,10.54]
[1726700219450,10.54,131.49,131.44,10.54]
[1726700219952,14.42460232,131.49,131.44,10.54]
[1726700220747,18.22670232,131.49,131.45,3.8029]
[1726700221752,10.54,131.48,131.45,3.8029]
[1726700231355,10.54,131.47,131.44,3.8033]
[1726700231547,10.54,131.45,131.42,1.4012]
[1726700232264,3.84626255,131.44,131.42,1.4012]
[1726700232864,3.84626255,131.44,131.42,5.205]
[1726700234166,3.84626255,131.44,131.42,15.745]
[1726700235553,10.54,131.45,131.41,3.8042]
[1726700235960,14.4185148,131.45,131.41,3.8042]
[1726700237559,14.4185148,131.45,131.41,14.3442]
[1726700239269,18.2217148,131.45,131.4,15.8805]
[1726700239763,10.54,131.43,131.4,5.3405]
[1726700239956,10.54,131.43,131.4,15.8805]
[1726700240558,14.40025222,131.43,131.4,15.8805]
[1726700242872,3.86025222,131.43,131.4,15.8805]
[1726700243065,10.54,131.44,131.4,15.8805]
[1726700243664,14.3266369,131.44,131.4,15.8805]
[1726700244972,14.3266369,131.44,131.41,14.3442]
[1726700246057,3.7866369,131.44,131.41,14.3442]
[1726700246263,14.3432,131.45,131.41,14.3442]
[1726700246770,18.17064489,131.45,131.41,14.3442]
[1726700248369,10.54,131.44,131.41,10.54]
[1726700248872,10.54,131.44,131.41,14.3442]
[1726700251569,3.82744489,131.45,131.42,14.3439]
[1726700251769,14.343,131.46,131.42,14.3439]
[1726700252371,18.06618579,131.46,131.42,14.3439]
[1726700253073,10.54,131.45,131.42,14.3439]
[1726700256370,10.54,131.45,131.4,1.5361]
[1726700256371,10.54,131.45,131.41,3.8041]
[1726700256565,10.54,131.45,131.41,14.3441]
[1726700260372,10.54,131.44,131.41,14.3441]
[1726700260577,10.54,131.44,131.4,15.8805]
[1726700263882,10.54,131.44,131.41,3.8042]
[1726700264682,3.72318579,131.46,131.42,14.3439]
[1726700264875,10.54,131.46,131.42,14.3439]
[1726700265075,14.43014912,131.46,131.42,14.3439]
[1726700265481,18.23304912,131.46,131.42,14.3439]
[1726700266476,10.54,131.45,131.42,3.8039]
[1726700266982,10.54,131.45,131.41,14.3441]
[1726700274391,18.23304912,131.46,131.41,14.3441]
[1726700278905,18.23304912,131.46,131.42,3.8039]
[1726700282303,14.43014912,131.46,131.42,3.8039]
[1726700282901,3.89014912,131.46,131.42,3.8039]
[1726700283100,3.8027,131.47,131.42,3.8039]
[1726700283299,10.54,131.46,131.42,3.8039]
[1726700283805,7.55927516,131.47,131.42,14.3439]
[1726700284001,3.75657516,131.47,131.45,10.54]
[1726700284302,10.54,131.49,131.45,10.54]
[1726700284496,14.39437093,131.49,131.45,10.54]
[1726700284894,14.39437093,131.49,131.45,14.3429]
[1726700285507,10.54,131.48,131.45,14.3429]
[1726700285806,10.54,131.48,131.45,3.8029]
[1726700286007,3.85437093,131.49,131.45,10.54]
[1726700286214,113.62933798,131.54,131.46,3.8026]
[1726700286399,10.54,131.49,131.46,3.8026]
[1726700286596,10.54,131.48,131.46,3.8026]
[1726700287405,14.39197397,131.48,131.45,14.343]
[1726700287715,3.85197397,131.48,131.45,3.803]
[1726700288010,10.54,131.47,131.45,3.803]
[1726700288199,3.84568144,131.46,131.45,3.803]
[1726700288609,3.84568144,131.46,131.44,3.8033]
[1726700291306,113.62933798,131.54,131.45,10.54]
[1726700291501,10.54,131.49,131.45,10.54]
[1726700291810,10.54,131.49,131.45,14.3429]
[1726700292402,10.54,131.49,131.45,10.54]
[1726700292603,29.70588144,131.52,131.46,10.54]
[1726700292804,10.54,131.51,131.46,10.54]
[1726700293105,33.50708144,131.52,131.47,3.8024]
[1726700293407,10.54,131.51,131.47,14.3424]
[1726700294109,3.8012,131.52,131.47,14.3424]
[1726700294307,10.54,131.51,131.47,14.3424]
[1726700297309,3.8012,131.52,131.47,14.3424]
[1726700297509,3.89390183,131.54,131.48,10.54]
[1726700297814,10.54,131.52,131.48,10.54]
[1726700298015,14.35457589,131.52,131.49,3.8019]
[1726700298713,14.35457589,131.52,131.48,10.54]
[1726700299215,3.81457589,131.52,131.49,3.8018]
[1726700299404,10.54,131.53,131.49,3.8018]
[1726700299610,14.39679525,131.53,131.49,3.8018]
[1726700304926,3.85679525,131.53,131.49,14.3418]
[1726700305117,10.54,131.53,131.49,14.3418]
[1726700305317,14.43128,131.53,131.5,3.8017]
[1726700305825,3.89128,131.53,131.5,3.8017]
[1726700306018,3.8006,131.54,131.5,3.8017]
[1726700306219,10.54,131.53,131.5,3.8017]
[1726700306522,3.8006,131.54,131.43,7.6071]
[1726700306523,3.8677034,131.54,131.43,7.6071]
[1726700306723,3.8677034,131.54,131.44,4.4347]
[1726700306724,10.54,131.54,131.44,4.4347]
[1726700306922,3.84222546,131.54,131.44,4.4347]
[1726700307122,10.54,131.54,131.5,10.54]
[1726700307325,3.7861288,131.54,131.51,10.54]
[1726700307531,10.54,131.55,131.51,14.3413]
[1726700307728,10.54,131.55,131.51,3.8013]
[1726700308118,3.7116002,131.55,131.51,3.8013]
[1726700308321,10.54,131.54,131.5,14.3416]
[1726700308819,14.3405,131.54,131.5,10.54]
[1726700309027,10.54,131.54,131.5,10.54]
[1726700309528,10.54,131.53,131.49,10.54]
[1726700310924,10.54,131.53,131.49,14.3417]
[1726700311518,10.54,131.53,131.5,10.54]
[1726700312731,10.54,131.53,131.5,14.3416]
[1726700313425,10.54,131.54,131.51,10.54]
[1726700315020,10.54,131.54,131.5,14.3416]
[1726700315528,10.54,131.54,131.51,3.8014]
[1726700318434,14.36111161,131.55,131.51,3.8014]
[1726700318635,14.36111161,131.55,131.51,3.8012]
[1726700321234,14.36111161,131.55,131.5,3.8016]
[1726700321235,18.16141161,131.55,131.5,3.8016]
[1726700321432,10.54,131.54,131.46,3.83555765]
[1726700321636,10.54,131.55,131.51,10.54]
[1726700321826,10.54,131.55,131.51,14.3414]
[1726700322332,14.42004221,131.55,131.51,14.3414]
[1726700323740,10.54,131.54,131.5,14.3415]
[1726700324238,3.88004221,131.55,131.52,10.54]
[1726700324434,10.54,131.56,131.52,10.54]
[1726700324631,14.29228673,131.56,131.52,10.54]
[1726700324832,10.54,131.55,131.51,10.54]
[1726700325234,3.75228673,131.56,131.51,10.54]
[1726700325534,10.54,131.55,131.51,10.54]
[1726700325934,10.54,131.55,131.51,14.3413]
[1726700326334,7.65143144,131.56,131.52,10.54]
[1726700326534,18.19143144,131.56,131.52,10.54]
[1726700328442,18.19143144,131.56,131.52,14.3411]
[1726700328947,7.65143144,131.56,131.52,14.3411]
[1726700329149,18.19143144,131.56,131.52,14.3411]
[1726700331547,18.19143144,131.56,131.52,3.8011]
[1726700332245,10.54,131.54,131.51,3.8013]
[1726700335349,10.54,131.54,131.51,14.3413]
[1726700342651,10.54,131.54,131.5,14.3415]
[1726700343453,10.54,131.54,131.5,3.8015]
[1726700343746,3.85153144,131.56,131.44,4.4347]
[1726700343747,10.54,131.51,131.44,4.4347]
[1726700343953,10.54,131.51,131.45,10.54]
[1726700344653,14.3415,131.51,131.46,3.8026]
[1726700344949,18.09303125,131.51,131.46,3.8026]
[1726700345152,14.29153125,131.51,131.47,10.54]
[1726700345352,3.75153125,131.51,131.48,10.54]
[1726700345554,1.4932,131.54,131.48,10.54]
[1726700345555,10.54,131.52,131.48,10.54]
[1726700345753,14.36833366,131.52,131.48,10.54]
[1726700345953,18.16943366,131.52,131.48,10.54]
[1726700347649,14.36833366,131.52,131.48,10.54]
[1726700348759,14.36833366,131.52,131.48,14.3421]
[1726700349858,18.16943366,131.52,131.48,14.3421]
[1726700359161,3.8014,131.51,131.48,10.54]
[1726700359360,10.54,131.5,131.44,4.4347]
[1726700359551,10.54,131.5,131.45,10.54]
[1726700359752,10.54,131.5,131.46,10.54]
[1726700359960,10.54,131.5,131.46,14.3428]
[1726700360566,14.36008025,131.5,131.46,14.3428]
[1726700363368,3.82008025,131.5,131.46,14.3428]
[1726700363568,14.3415,131.51,131.46,14.3428]
[1726700364064,18.1111907,131.51,131.46,14.3428]
[1726700365762,7.5711907,131.51,131.46,14.3428]
[1726700366061,18.1111907,131.51,131.46,14.3428]
[1726700367364,18.1111907,131.51,131.47,3.8025]
[1726700372268,3.7696907,131.51,131.47,14.3425]
[1726700372465,14.3413,131.52,131.47,14.3425]
[1726700372957,18.2193951,131.52,131.47,14.3425]
[1726700376665,7.6793951,131.52,131.48,3.8021]
[1726700376967,18.2193951,131.52,131.48,3.8021]
[1726700377170,14.4180951,131.52,131.48,3.8021]
[1726700378872,10.54,131.51,131.48,3.8021]
[1726700379067,10.54,131.51,131.47,14.3424]
[1726700382272,10.54,131.5,131.47,3.8024]
[1726700382478,16.76605894,131.56,131.47,3.8024]
[1726700382665,10.54,131.51,131.47,3.8024]
[1726700388576,3.8012,131.52,131.47,3.8024]
[1726700388777,10.54,131.51,131.47,3.8024]
[1726700391974,3.8012,131.52,131.47,3.8024]
[1726700392180,10.54,131.51,131.47,3.8024]
[1726700399090,3.8012,131.52,131.47,3.8024]
[1726700399291,10.54,131.51,131.47,3.8024]
[1726700400089,14.3412,131.52,131.48,3.8022]
[1726700400386,5.1441159,131.57,131.51,14.3411]
[1726700400591,14.2801159,131.57,131.53,10.54]
[1726700400997,14.2801159,131.57,131.46,3.71349939]
[1726700400998,7.5399159,131.57,131.54,10.54]
[1726700401498,3.7401159,131.57,131.54,10.54]
[1726700401791,10.54,131.59,131.55,10.54]
[1726700401993,10.54,131.59,131.56,10.54]
[1726700402387,14.3391,131.59,131.56,10.54]
[1726700402989,10.54,131.59,131.56,14.3399]
[1726700403690,12.92998622,131.61,131.58,10.54]
[1726700403891,16.02813247,131.63,131.58,10.54]
[1726700404090,3.75276774,131.64,131.59,10.54]
[1726700404285,14.338,131.63,131.59,14.3388]
[1726700404489,18.1336356,131.63,131.59,14.3388]
[1726700404690,3.7956356,131.63,131.6,3.7987]
[1726700404887,10.54,131.63,131.6,3.7987]
[1726700405085,14.37647202,131.63,131.59,10.54]
[1726700405296,3.83647202,131.63,131.61,10.54]
[1726700405594,23.46849693,131.64,131.61,10.54]
[1726700405798,14.3376,131.64,131.61,10.54]
[1726700406298,14.3376,131.64,131.6,14.3387]
[1726700407996,10.54,131.63,131.6,14.3387]
[1726700409293,10.54,131.61,131.52,152.08]
[1726700409595,3.76777537,131.6,131.57,10.54]
[1726700410100,3.76777537,131.6,131.58,3.7993]
[1726700411999,3.76777537,131.6,131.57,14.3395]
[1726700412896,3.76777537,131.6,131.57,10.54]
[1726700413284,3.76777537,131.6,131.57,14.3395]
[1726700414296,3.76777537,131.6,131.58,10.54]
[1726700414497,10.54,131.64,131.59,10.54]
[1726700414984,14.3379,131.64,131.59,14.339]
[1726700415789,3.798,131.63,131.59,14.339]
[1726700416190,3.798,131.63,131.6,3.7987]
[1726700416394,14.3377,131.64,131.6,3.7987]
[1726700416590,10.54,131.65,131.6,10.54]
[1726700417394,10.54,131.65,131.6,14.3387]
[1726700417395,3.7978,131.64,131.6,14.3387]
[1726700417596,14.3378,131.64,131.6,14.3387]
[1726700418295,14.3378,131.64,131.6,3.7987]
[1726700418495,3.7979,131.63,131.6,3.7987]
[1726700418690,14.3379,131.63,131.59,14.339]
[1726700420111,14.3379,131.63,131.59,3.799]
[1726700420398,14.3382,131.62,131.58,3.7992]
[1726700420601,14.3382,131.62,131.52,152.08]
[1726700420602,10.54,131.61,131.57,10.54]
[1726700420795,14.30359167,131.61,131.57,10.54]
[1726700420999,14.30359167,131.61,131.57,14.3395]
[1726700421398,18.10209167,131.61,131.57,14.3395]
[1726700422491,14.30359167,131.61,131.57,3.7995]
[1726700422689,14.30359167,131.61,131.58,10.54]
[1726700423095,3.76359167,131.61,131.58,10.54]
[1726700423294,14.3383,131.62,131.58,10.54]
[1726700424101,10.54,131.62,131.58,10.54]
[1726700424400,10.54,131.59,131.54,14.8008]
[1726700424603,10.54,131.55,131.5,162.56]
[1726700424791,10.54,131.55,131.5,166.3616]
[1726700424792,10.54,131.54,131.5,166.3616]
[1726700425304,10.54,131.54,131.51,3.8014]
[1726700425602,10.54,131.54,131.5,162.56]
[1726700425900,10.54,131.53,131.49,6.6914]
[1726700427398,10.54,131.53,131.49,17.2314]
[1726700427792,10.54,131.54,131.49,17.2314]
[1726700427999,14.3401,131.56,131.52,10.54]
[1726700428598,10.54,131.56,131.53,10.54]
[1726700428806,14.3397,131.57,131.54,10.54]
[1726700429299,14.3395,131.58,131.54,10.54]
[1726700429703,3.78375667,131.57,131.54,10.54]
[1726700429904,10.54,131.58,131.55,10.54]
[1726700430105,14.3392,131.59,131.55,10.54]
[1726700430307,18.16402246,131.59,131.55,10.54]
[1726700431502,18.16402246,131.59,131.54,3.8003]
[1726700431702,18.16402246,131.59,131.55,10.54]
[1726700432607,18.16402246,131.59,131.56,10.54]
[1726700432608,3.82482246,131.59,131.56,10.54]
[1726700432906,3.001,131.64,131.57,10.54]
[1726700432907,10.54,131.61,131.57,10.54]
[1726700433105,10.54,131.6,131.56,10.54]
[1726700433502,14.3389,131.6,131.56,14.3399]
[1726700433707,10.54,131.6,131.56,14.3399]
[1726700434006,10.54,131.6,131.56,10.54]
[1726700434310,10.54,131.6,131.57,3.7996]
[1726700434717,14.3388,131.6,131.57,3.7996]
[1726700436309,3.74876963,131.61,131.58,10.54]
[1726700436609,12.0128,131.64,131.6,10.54]
[1726700436814,5.17283533,131.68,131.61,10.54]
[1726700437011,10.54,131.65,131.61,10.54]
[1726700437208,14.39982984,131.65,131.61,10.54]
[1726700437715,18.19732984,131.65,131.61,14.3383]
[1726700438211,18.19732984,131.65,131.61,10.54]
[1726700439305,18.19732984,131.65,131.61,14.3385]
[1726700439507,3.85982984,131.65,131.62,10.54]
[1726700439808,3.85982984,131.65,131.63,10.54]
[1726700440008,10.54,131.66,131.62,10.54]
[1726700440211,3.74164464,131.65,131.62,10.54]
[1726700440710,3.74164464,131.65,131.62,14.3382]
[1726700440912,3.74164464,131.65,131.62,10.54]
[1726700441314,3.74164464,131.65,131.63,10.54]
[1726700442016,10.54,131.64,131.57,4.4062]
[1726700442214,14.41777589,131.63,131.59,10.54]
[1726700442406,10.54,131.63,131.59,10.54]
[1726700442602,10.54,131.62,131.59,10.54]
[1726700443202,10.54,131.62,131.57,4.4062]
[1726700443203,14.29693976,131.63,131.57,4.4062]
[1726700443404,10.54,131.62,131.58,10.54]
[1726700443609,14.31309281,131.62,131.58,10.54]
[1726700444305,3.77309281,131.62,131.59,10.54]
[1726700444509,10.54,131.63,131.59,10.54]
[1726700445017,3.73584834,131.62,131.6,10.54]
[1726700445312,3.73584834,131.62,131.6,14.3387]
[1726700445519,10.54,131.64,131.6,10.54]
[1726700445715,10.54,131.63,131.59,10.54]
[1726700446519,3.84074093,131.62,131.59,10.54]
[1726700447512,10.54,131.63,131.59,10.54]
[1726700447913,14.3381,131.63,131.59,10.54]
[1726700448110,18.15033751,131.63,131.59,10.54]
[1726700449018,3.7982,131.62,131.59,10.54]
[1726700450223,3.7982,131.62,131.58,10.54]
[1726700450627,18.15023751,131.63,131.58,10.54]
[1726700451428,14.35223751,131.63,131.59,10.54]
[1726700452035,10.54,131.62,131.58,10.54]
[1726700452634,14.3382,131.62,131.58,10.54]
[1726700454133,10.54,131.61,131.57,4.4062]
[1726700454333,10.54,131.59,131.55,10.54]
[1726700454629,10.54,131.59,131.55,14.34]
[1726700454937,14.26644397,131.6,131.56,10.54]
[1726700455326,10.54,131.59,131.56,10.54]
[1726700455732,10.54,131.59,131.55,10.54]
[1726700455941,10.54,131.57,131.51,4.3956]
[1726700456139,10.54,131.57,131.52,10.54]
[1726700456644,10.54,131.57,131.53,10.54]
[1726700457140,3.83831108,131.56,131.53,10.54]
[1726700458233,3.83831108,131.56,131.54,10.54]
[1726700458434,10.54,131.58,131.54,10.54]
[1726700459037,3.77785626,131.58,131.56,10.54]
[1726700459338,14.3388,131.6,131.56,10.54]
[1726700459731,18.18965831,131.6,131.56,10.54]
[1726700460339,14.3391,131.59,131.54,14.3404]
[1726700460639,10.54,131.57,131.52,10.54]
[1726700460843,3.83886404,131.56,131.52,10.54]
[1726700461043,3.83886404,131.56,131.55,10.54]
[1726700461242,10.54,131.59,131.55,10.54]
[1726700461739,14.36099825,131.59,131.55,14.3402]
[1726700462340,14.36099825,131.59,131.56,10.54]
[1726700462341,3.82099825,131.59,131.56,10.54]
[1726700462547,10.54,131.61,131.56,10.54]
[1726700462738,14.25114265,131.61,131.56,10.54]
[1726700462936,10.54,131.6,131.56,10.54]
[1726700463138,10.54,131.6,131.56,14.3397]
[1726700463343,10.54,131.6,131.56,10.54]
[1726700463535,14.3388,131.6,131.56,10.54]
[1726700463844,14.26311278,131.6,131.56,10.54]
[1726700464537,14.26311278,131.6,131.56,14.3398]
[1726700464748,10.54,131.59,131.56,3.7998]
[1726700465241,3.85272804,131.59,131.57,14.3396]
[1726700465443,14.3386,131.61,131.57,14.3396]
[1726700465639,14.3386,131.61,131.57,10.54]
[1726700465833,18.11606757,131.61,131.57,10.54]
[1726700466842,18.11606757,131.61,131.57,14.3396]
[1726700467337,18.11606757,131.61,131.51,4.3956]
[1726700467338,10.54,131.6,131.51,4.3956]
[1726700467545,10.54,131.6,131.55,10.54]
[1726700468146,14.36725842,131.6,131.56,3.7997]
[1726700469845,18.16605842,131.6,131.56,3.7997]
[1726700470543,3.82725842,131.6,131.57,3.7996]
[1726700470854,10.54,131.63,131.58,10.54]
[1726700471038,14.36983291,131.63,131.58,10.54]
[1726700472546,18.16793291,131.63,131.59,3.7989]
[1726700472747,10.54,131.62,131.59,3.7989]
[1726700475848,14.36983291,131.63,131.58,10.54]
[1726700476653,3.82983291,131.63,131.53,3.79314421]
[1726700476841,10.54,131.65,131.61,10.54]
[1726700477740,14.3374,131.65,131.61,14.3383]
[1726700478749,10.54,131.64,131.61,3.7983]
[1726700478945,10.54,131.64,131.6,14.3387]
[1726700481255,10.54,131.64,131.61,3.7985]
[1726700481553,14.3374,131.65,131.61,14.3385]
[1726700482756,3.7972,131.66,131.61,10.54]
[1726700483060,10.54,131.66,131.62,3.7981]
[1726700483448,10.54,131.66,131.62,14.3381]
[1726700484462,14.3369,131.67,131.63,14.3378]
[1726700484755,3.7966,131.68,131.64,10.54]
[1726700484962,14.3366,131.68,131.64,10.54]
[1726700485154,3.7962,131.69,131.65,3.7971]
[1726700485351,14.3362,131.69,131.65,3.7971]
[1726700486457,10.54,131.68,131.65,3.7971]
[1726700487167,14.3365,131.68,131.64,14.3374]
[1726700487457,14.3365,131.68,131.64,3.7974]
[1726700489554,3.7965,131.68,131.64,3.7974]
[1726700489755,14.3365,131.68,131.64,3.7974]
[1726700489959,10.54,131.66,131.63,14.3377]
[1726700490655,3.73054031,131.65,131.64,3.7976]
[1726700491161,10.54,131.67,131.64,3.7976]
[1726700491556,14.39476502,131.67,131.64,3.7976]
[1726700492566,14.39476502,131.67,131.63,14.3378]
[1726700493757,18.19156502,131.67,131.63,14.3378]
[1726700497465,10.54,131.66,131.63,3.7978]
[1726700499462,3.85476502,131.67,131.63,14.3378]
[1726700499666,10.54,131.67,131.63,14.3378]
[1726700499868,3.75864833,131.67,131.64,14.3376]
[1726700500060,14.3366,131.68,131.64,14.3376]
[1726700500260,10.54,131.68,131.64,14.3376]
[1726700500865,10.54,131.68,131.65,10.54]
[1726700501071,14.3364,131.69,131.65,14.3373]
[1726700502667,3.7966,131.68,131.65,14.3373]
[1726700503877,14.3366,131.68,131.65,3.7973]
[1726700504177,10.54,131.68,131.65,3.7973]
[1726700506588,14.3363,131.69,131.65,14.3373]
[1726700507380,14.3363,131.69,131.66,3.797]
[1726700507781,3.7965,131.68,131.65,10.54]
[1726700508487,14.3365,131.68,131.64,10.54]
[1726700508994,14.3365,131.68,131.65,3.7973]
[1726700509388,10.54,131.67,131.65,3.7973]
[1726700509586,14.35078909,131.67,131.65,3.7973]
[1726700510985,3.81078909,131.67,131.65,3.7973]
[1726700511278,10.54,131.68,131.65,3.7973]
[1726700511989,10.54,131.7,131.65,10.54]
[1726700512589,2.9743,131.73,131.67,10.54]
[1726700512790,10.54,131.72,131.69,10.54]
[1726700513187,3.77850627,131.74,131.69,10.54]
[1726700513398,10.54,131.73,131.69,10.54]
[1726700513596,14.26797063,131.73,131.69,10.54]
[1726700513785,3.7954,131.72,131.69,14.3361]
[1726700514793,18.06317063,131.73,131.69,14.3361]
[1726700514988,3.72797063,131.73,131.7,14.3358]
[1726700515179,10.54,131.74,131.7,14.3358]
[1726700515379,14.3349,131.74,131.7,14.3358]
[1726700515894,18.07313142,131.74,131.7,14.3358]
[1726700516585,18.07313142,131.74,131.71,10.54]
[1726700516586,3.73823142,131.74,131.71,10.54]
[1726700516786,14.3346,131.75,131.71,10.54]
[1726700517288,18.16511937,131.75,131.72,3.7951]
[1726700517790,18.16511937,131.75,131.71,10.54]
[1726700518191,18.16511937,131.75,131.71,14.3354]
[1726700518387,18.16511937,131.75,131.71,10.54]
[1726700519087,10.54,131.74,131.7,10.54]
[1726700519488,14.3348,131.74,131.71,3.7954]
[1726700520293,10.54,131.74,131.71,3.7954]
[1726700523893,18.16511937,131.75,131.71,14.3354]
[1726700524198,7.62511937,131.75,131.72,3.7952]
[1726700524397,18.16511937,131.75,131.72,3.7952]
[1726700524990,3.7949,131.74,131.71,14.3355]
[1726700525192,14.3349,131.74,131.71,14.3355]
[1726700525397,10.54,131.74,131.71,14.3355]